Cogmind - Beta 13 X1 @@@ ROGUE MODE // 2023.09.24 @ 15:14:24 Player: DuckBoy Result: Destroyed by D-53 Grenadier with Mini Grenade Launcher Performance ------------- Evolutions (1) 500 Regions Visited (4) 800 Robots Destroyed (41) 205 Value Destroyed (1186) 1186 Prototype IDs (0) 0 Alien Tech Used (0) 0 Bonus (11) 11 TOTAL SCORE: 2702 Bonus ------- High Alert Combat Kills 11 Cogmind --------- Core Integrity 0/400 Matter 289/300 Energy 70/100 System Corruption 2% Temperature Cool (0) Movement Treading (160) Location -9/Mines Parts ------- > --- POWER (1) -------- (None) > --- PROPULSION (2) --- Light Treads Light Treads > --- UTILITY (3) ------ Cooling System Small Storage Unit > --- WEAPON (3) ------- (None) > --- INVENTORY (8) ---- Cooling System Hacking Suite Hacking Suite Peak State ------------ > --- POWER ------------ Reinforced Ion Engine > --- PROPULSION ------- Light Treads Light Treads > --- UTILITY ---------- Cooling System Small Storage Unit Light Armor Plating > --- WEAPON ----------- Particle Gun Particle Cannon Assault Rifle > --- INVENTORY -------- Light Treads Light Treads Light Treads Wheel Wheel Hacking Suite Hacking Suite Grenade Launcher [Rating: 14] Favorites ----------- Power Reinforced Ion Engine Engine Reinforced Ion Engine Propulsion Light Treads Treads Light Treads Wheel Wheel Utility Small Storage Unit Device Heat Sink Storage Small Storage Unit Protection Light Armor Plating Weapon Assault Rifle Energy Gun Particle Gun Energy Cannon Particle Cannon Ballistic Gun Assault Rifle Launcher Grenade Launcher Build | -11 -10 -10 -9 -9 ------- Run | Jun Mat Min Mat Min Slots Evolved 2 | . . . 2 . Power . | . . . . . Propulsion . | . . . . . Utility 1 | . . . 1 . Weapon 1 | . . . 1 . Parts Attached 33 | 6 . . 20 7 Power 3 | 1 . . 2 . Engine 3 | 1 . . 2 . Core . | . . . . . Reactor . | . . . . . Propulsion 16 | 2 . . 8 6 Treads 10 | . . . 6 4 Leg . | . . . . . Wheel 6 | 2 . . 2 2 Hover . | . . . . . Flight . | . . . . . Utility 7 | 1 . . 6 . Device 3 | . . . 3 . Storage 1 | 1 . . . . Processor . | . . . . . Hackware . | . . . . . Protection 3 | . . . 3 . Artifact . | . . . . . Weapon 7 | 2 . . 4 1 Energy Gun 4 | 1 . . 2 1 Energy Cannon 1 | . . . 1 . Ballistic Gun 1 | 1 . . . . Ballistic Cannon . | . . . . . Launcher 1 | . . . 1 . Special Weapon . | . . . . . Impact Weapon . | . . . . . Slashing Weapon . | . . . . . Piercing Weapon . | . . . . . Special Melee Weapon . | . . . . . Unidentified Prototypes . | . . . . . Parts Lost 14 | . . . 4 10 Power 1 | . . . . 1 Propulsion 5 | . . . 1 4 Utility 2 | . . . 1 1 Weapon 6 | . . . 2 4 Highest Loss Streak 6 | . . . 3 6 To Critical Strikes . | . . . . . Average Slot Usage (%) 87 | . 85 85 92 64 Engine 11 | . 14 14 11 10 Treads 16 | . . . 20 17 Wheel 6 | . 28 28 1 1 Device 8 | . . . 10 11 Storage 11 | . 14 14 11 11 Protection 5 | . . . 8 . Energy Gun 14 | . 14 14 15 10 Energy Cannon 3 | . . . 4 1 Ballistic Gun 8 | . 14 14 8 . Launcher 1 | . . . 1 . Naked Turns . | . . . . . Heaviest Build 30 | 14 14 14 30 30 Greatest Support 40 | 20 20 20 40 40 Greatest Overweight (x) 2 | 2 . . 1 2 Average Overweight (x) . | . . . . . Largest Inventory Capacity 8 | 8 8 8 8 8 Average Capacity 7 | 7 8 8 8 8 Most Carried 8 | 3 7 7 8 8 Average Carried 6 | 1 4 7 7 5 Final Capacity 8 | 8 8 8 8 8 Final Carried 8 | 3 7 7 8 3 Class Distribution -------------------- 39% | Mutant 26% | Scavenger-Tank 23% | Scavenger-Mutant 7% | Gunner Dominant Class ---------------- Mutant | -10/Materials Mutant | -10/Mines Scavenger-Tank | -9/Materials Mutant | -9/Mines Resources | -11 -10 -10 -9 -9 ----------- Run | Jun Mat Min Mat Min Matter Collected 875 | 197 138 . 490 50 Remotely . | . . . . . Salvage Created 1709 | . 251 . 1421 37 Parts 83 | . 15 . 68 . Haulers Intercepted 1 | . . . 1 . Recyclers Shooed 1 | . . . 1 . Parts Field Recycled . | . . . . . Retrieved Matter . | . . . . . Parts Self-Destructed . | . . . . . Prevented . | . . . . . Kills | -11 -10 -10 -9 -9 ------- Run | Jun Mat Min Mat Min Combat Hostiles Destroyed 40 | . 3 . 24 13 Guns 26 | . 3 . 19 4 Cannons 4 | . . . 4 . AOE 10 | . . . 1 9 Classes Destroyed 12 | . 6 . 5 1 Worker 1 | . . . 1 . Builder 1 | . 1 . . . Hauler 1 | . . . 1 . Recycler 4 | . 1 . 3 . Operator 3 | . 1 . 2 . Watcher 4 | . 1 . 3 . Swarmer 1 | . 1 . . . Grunt 17 | . 2 . 15 . Brawler 1 | . . . 1 . Duelist 1 | . . . 1 . Sentry 7 | . . . 7 . Assembled 13 | . . . . 13 Best Kill Streak 13 | . 2 . 7 13 Combat Bots Only 13 | . 2 . 5 13 Max Kills in Single Turn 5 | . 1 . 2 5 Gunslinging . | . . . . . Exploded 5 | . . . 1 5 Melee . | . . . . . Uniques/NPCs Destroyed . | . . . . . Combat | -11 -10 -10 -9 -9 -------- Run | Jun Mat Min Mat Min Damage Taken 2253 | . 156 . 1041 1056 Core 433 | . 26 . 121 286 Absorbed by Shields . | . . . . . Core Remaining (%) 94 | 100 . 89 . . Volleys Fired 152 | . 25 . 109 18 Largest 3 | . 2 . 3 2 Hottest 163 | . 70 . 163 133 Shots Fired 332 | . 49 . 261 22 Gun 292 | . 49 . 227 16 Cannon 36 | . . . 33 3 Launcher 4 | . . . 1 3 Special . | . . . . . Kinetic 110 | . 25 . 85 . Thermal 218 | . 24 . 175 19 Explosive 4 | . . . 1 3 Electromagnetic . | . . . . . Robot Hit Streak 11 | . 5 . 11 6 Robot Miss Streak 6 | . 3 . 5 6 Penetration Max . | . . . . . Secondary Targets 2 | . . . 2 . Max Gunslinging Chain 1 | . . . 1 . Shots Hit Robots 202 | . 29 . 155 18 Core Hits 115 | . 11 . 54 50 Critical Kills . | . . . . . Critical Parts Destroyed . | . . . . . Critical Strikes 7 | . 2 . 5 . Burn 7 | . 2 . 5 . Melee Attacks . | . . . . . Impact . | . . . . . Slashing . | . . . . . Piercing . | . . . . . Sneak Attacks . | . . . . . Combat Hostiles . | . . . . . Follow-up Attacks . | . . . . . Damage Inflicted 3583 | . 368 . 2491 724 Guns 2497 | . 368 . 1981 148 Cannons 326 | . . . 305 21 Explosions 753 | . . . 200 553 Melee . | . . . . . Ramming 7 | . . . 5 2 Kinetic 886 | . 218 . 668 . Thermal 1937 | . 150 . 1618 169 Explosive 753 | . . . 200 553 Electromagnetic . | . . . . . Impact . | . . . . . Slashing . | . . . . . Piercing . | . . . . . Highest Corruption 2 | . . . 2 2 Average Corruption 2 | . . . 2 2 Corruption Purged . | . . . . . Corruption Blocked . | . . . . . Effects 4 | . . . 2 2 Matter Fused 2 | . . . 2 . Heat Flow Errors 1 | . . . . 1 Misfires 1 | . . . . 1 Overload Shots . | . . . . . Overflow Damage 15 | . . . . 15 Projectiles . | . . . . . Explosions 15 | . . . . 15 Melee . | . . . . . Knockbacks . | . . . . . Impact . | . . . . . Kinetic . | . . . . . Secondary . | . . . . . Self-Inflicted Damage 27 | . . . 13 14 Shots 2 | . . . 1 1 Rammed 7 | . . . 3 4 Targets Rammed 8 | . . . 4 4 Kicked . | . . . . . Crushed 1 | . . . 1 . Highest Temperature 374 | . 129 . 374 63 Average Temperature 78 | . 46 . 87 19 Received Heat Transfer 540 | . 60 . 480 . Effects 6 | . . . 6 . Energy Bleed 2 | . . . 2 . Interference 3 | . . . 3 . Matter Decay 1 | . . . 1 . Siege Activations . | . . . . . Robots Corrupted . | . . . . . Combat Hostiles . | . . . . . Parts Fried . | . . . . . Impact Corruptions . | . . . . . Robots Melted . | . . . . . Combat Hostiles . | . . . . . Parts Melted 11 | . 2 . 9 . Heat Transferred 5074 | . 592 . 4255 227 Parts Sabotaged . | . . . . . Parts Stolen . | . . . . . Parts Stripped . | . . . . . Power Chain Reactions . | . . . . . Missiles Intercepted . | . . . . . Alert | -11 -10 -10 -9 -9 ------- Run | Jun Mat Min Mat Min Peak Influence 404 | . 184 71 404 113 Initial 99 | . . 71 27 99 Average 178 | . 77 71 241 62 Maximum Alert Level 2 | . . . 2 . Low Security (%) 59 | 100 100 100 37 100 Level 1 35 | . . . 54 . Level 2 4 | . . . 7 . Level 3 . | . . . . . Level 4 . | . . . . . Level 5 . | . . . . . High Security . | . . . . . Max Security . | . . . . . Squads Dispatched 5 | . 2 . 3 . Investigation 1 | . 1 . . . Extermination . | . . . . . Reinforcement 4 | . 1 . 3 . Assault . | . . . . . Garrison . | . . . . . Intercept . | . . . . . Searches Triggered . | . . . . . Construction Impeded . | . . . . . Haulers Reinforced . | . . . . . Active Scanning Responses . | . . . . . Cargo Convoy Interrupts . | . . . . . Stealth | -11 -10 -10 -9 -9 --------- Run | Jun Mat Min Mat Min Distress Signals 6 | . 1 . 5 . Communications Jammed . | . . . . . Distress Signals . | . . . . . Times Spotted 71 | . 9 2 40 20 Peak Tracking Total 18 | . 4 2 4 18 Tactical Retreats 6 | . 3 . 2 1 Traps | -11 -10 -10 -9 -9 ------- Run | Jun Mat Min Mat Min Traps Triggered 2 | . 1 . 1 . Indirectly . | . . . . . Trap Hack Attempts . | . . . . . Triggered . | . . . . . Disarmed . | . . . . . Reprogrammed . | . . . . . Reused . | . . . . . Traps Extracted . | . . . . . Installed . | . . . . . Triggered . | . . . . . Machines | -11 -10 -10 -9 -9 ---------- Run | Jun Mat Min Mat Min Machines Disabled 4 | . . . 4 . Max in Single Turn 2 | . . . 2 . Machines Repaired . | . . . . . Machines Sabotaged . | . . . . . Overloaded Fab Kills . | . . . . . Hacking | -11 -10 -10 -9 -9 --------- Run | Jun Mat Min Mat Min Machines Accessed 7 | . 2 . 5 . Terminals 7 | . 2 . 5 . Fabricators . | . . . . . Repair Stations . | . . . . . Recycling Units . | . . . . . Scanalyzers . | . . . . . Garrison Access . | . . . . . Total Hacks 24 | . 9 . 15 . Successful 10 | . 3 . 7 . Failed 14 | . 6 . 8 . Catastrophic 3 | . . . 3 . Database Lockouts . | . . . . . Manual 20 | . 7 . 13 . Terminals 24 | . 9 . 15 . Fabricators . | . . . . . Repair Stations . | . . . . . Recycling Units . | . . . . . Scanalyzers . | . . . . . Garrison Access . | . . . . . Terminal Hacks 3 | . . . 3 . Robot Schematic 1 | . . . 1 . Branch Access Points 1 | . . . 1 . Unreport Threat 1 | . . . 1 . Fabricator Hacks . | . . . . . Repair Station Hacks . | . . . . . Recycling Unit Hacks . | . . . . . Scanalyzer . | . . . . . Garrison Access Hacks . | . . . . . Unauthorized Hacks 7 | . 3 . 4 . Terminals 7 | . 3 . 4 . Assimilate 1 | . . . 1 . Botnet 3 | . 1 . 2 . Operators 3 | . 2 . 1 . Fabricators . | . . . . . Repair Stations . | . . . . . Recycling Units . | . . . . . Scanalyzers . | . . . . . Garrison Access . | . . . . . Data Cores Recovered . | . . . . . Used . | . . . . . Hacking Detections 7 | . 2 . 5 . Full Trace Events . | . . . . . Feedback Events . | . . . . . Feedback Blocked . | . . . . . Robot Schematics Acquired 1 | . . . 1 . Robots Built . | . . . . . Authchips . | . . . . . Time . | . . . . . Total Robot Build Rating . | . . . . . Part Schematics Acquired . | . . . . . Parts Built . | . . . . . Authchips . | . . . . . Time . | . . . . . Total Part Build Rating . | . . . . . Parts Repaired . | . . . . . Time . | . . . . . Parts Recycled . | . . . . . Recycled Matter . | . . . . . Retrieved Matter . | . . . . . Retrieved Components . | . . . . . Parts Scanalyzed . | . . . . . Part Schematics Acquired . | . . . . . Parts Damaged . | . . . . . Bothacking | -11 -10 -10 -9 -9 ------------ Run | Jun Mat Min Mat Min Used RIF Installer . | . . . . . Robots Hacked . | . . . . . Non-combat . | . . . . . Combat . | . . . . . Robot Hacks Applied . | . . . . . Relay Couplers Released . | . . . . . Fabnet Peak Effective % . | . . . . . Robots Rewired . | . . . . . Allies Hacked . | . . . . . Hacks Repelled . | . . . . . Allies | -11 -10 -10 -9 -9 -------- Run | Jun Mat Min Mat Min Total Allies . | . . . . . Largest Group . | . . . . . Highest-Rated Group . | . . . . . Highest-Rated Ally . | . . . . . Total Orders . | . . . . . Ally Attacks . | . . . . . Total Damage . | . . . . . Kills . | . . . . . Allies Corrupted . | . . . . . Allies Melted . | . . . . . Intel | -11 -10 -10 -9 -9 ------- Run | Jun Mat Min Mat Min Robot Analysis Total . | . . . . . Derelict Logs Recovered 1 | . . . . 1 Drone Launches . | . . . . . Drone Recoveries . | . . . . . Exploration | -11 -10 -10 -9 -9 ------------- Run | Jun Mat Min Mat Min Turns Passed 1947 | 55 252 117 1260 263 Spaces Moved 1002 | 50 216 146 520 70 Core 9 | 7 . . . 2 Treads 538 | . . . 477 61 Legs . | . . . . . Wheels 455 | 43 216 146 43 7 Hover . | . . . . . Flight . | . . . . . Fastest Speed 50 | 50 80 80 80 95 Average Speed 124 | 85 80 80 155 154 Slowest Speed 240 | 150 80 80 240 160 Overloaded Moves . | . . . . . Propulsion Burnouts . | . . . . . Robots Hopped . | . . . . . Cave-ins Triggered . | . . . . . Exploration Rate (%) 27 | 3 28 44 48 15 Regions Visited 4 Branch Regions 2 Pre-discovered Areas . | . . . . . Known Exits Taken 1 | . . . 1 . Unknown Exits Taken 3 | 1 1 1 . . Scrap Searched . | . . . . . Spaces Dug . | . . . . . Terrain Destroyed 36 | . . . 13 23 Melee . | . . . . . Projectile . | . . . . . AOE 36 | . . . 13 23 Terrain Rammed . | . . . . . Walls Destroyed . | . . . . . Machines Disabled . | . . . . . Actions | -11 -10 -10 -9 -9 --------- Run | Jun Mat Min Mat Min Total 1400 | 58 245 145 752 200 Wait 179 | . 1 . 77 101 Move 998 | 49 215 145 519 70 Hop . | . . . . . Pick Up 16 | 3 4 . 9 . Fast Attach 12 | 6 . . 6 . Attach 6 | . . . 1 5 Detach . | . . . . . Swap 15 | . . . 13 2 Drop 14 | . . . 14 . Fire 152 | . 25 . 109 18 Melee . | . . . . . Ram . | . . . . . Kick . | . . . . . Crush 8 | . . . 4 4 Escape Stasis . | . . . . . Rewire . | . . . . . Trap . | . . . . . Miscellaneous . | . . . . . Route ------- -11/Junkyard -10/Materials -10/Mines -9/Materials (discovered 2 exits: [*Mat] / *Min) -9/Mines History --------- Turn | Location | Event 21 | -11/Junkyard | Discovered new exit (range 16) 56 | -11/Junkyard | Entered Materials 297 | -10/Materials | Discovered new exit (range 13) 304 | -10/Materials | Build established: Mutant 308 | -10/Materials | Entered Mines 421 | -10/Mines | Discovered new exit (range 6) 425 | -10/Mines | Entered Materials 425 | -9/Materials | Evolved 2 slots: Utility x1, Weapon x1 775 | -9/Materials | Discovered new exit (range 15) 1024 | -9/Materials | Lost 3 parts (1n1u1w) 1362 | -9/Materials | Identified exit to Mines 1679 | -9/Materials | Build established: Scavenger-Mutant 1685 | -9/Materials | Entered Mines 1686 | -9/Mines | Assembled infested the area 1749 | -9/Mines | Lost 6 parts (2n1u3w) 1761 | -9/Mines | Destroyed 13 combat bots 1903 | -9/Mines | Learned 4 Materials zone layouts 1928 | -9/Mines | Core integrity fell below 50% 1943 | -9/Mines | Core integrity fell below 20% 1948 | -9/Mines | Destroyed by D-53 Grenadier with Mini Grenade Launcher Last Messages --------------- 01935_ U-05 Engineer builds a Wall. 01937_ Slammed into D-53 Grenadier. 01937_ Lgt. Treads destroyed. 01937_ U-05 Engineer lays Concrete. 01938_ The unstable cave ceiling collapses. 01938_ Slammed into D-53 Grenadier. 01938_ U-05 Engineer lays Concrete. 01939_ Lgt. Treads destroyed. 01939_ D-53 Grenadier destroyed. 01939_ U-05 Engineer lays Concrete. 01940_ U-05 Engineer builds a Wall. 01941_ U-05 Engineer lays Concrete. 01943_ U-05 Engineer builds a Wall. 01945_ Slammed into D-53 Grenadier. 01946_ U-05 Engineer lays Concrete. 01946_ Slammed into D-53 Grenadier. 01947_ The unstable cave ceiling collapses. 01947_ U-05 Engineer lays Concrete. 01948_ The unstable cave ceiling collapses. 01948_ U-05 Engineer builds a Wall. Map ----- +----------------------------------------------------+ | ?????????????????????????????????????????????????? | | ?????????????????????????????????????????????????? | | ?????????????????????????????????????????????????? | | ?????????????????????????????????????????????????? | | ?????????????????????????????????????????????????? | | ?????????????????????????????????????????????????? | | ?????????????????????????????????????????????????? | | ????????????##???????????????????????????????????? | | ????????????# ???????????????????????????????????? | | ????????????# ??????????????????????????????????? | | ????????????# ??????????????????????????????????? | | ????????????# ??????????????????????????????????? | | ????????????# ??????????????????????????????????? | | ????????????# %??????????????????????????????????? | | ??????????### ??????????????????????????????????? | | ?????????## ??######??????????????????????????? | | ?????????# ### # #####??????????????????????? | | ??????####" # # # ##?????????????????????? | | ??????# #### ##????????????????????? | | ??????# uu ##???????????????????? | | ???????###### ##??????????????????? | | ????????????# #??????????????????? | | ????????????## #??????#???????????? | | ??###????????## # # #### ##??????????? | | ? ######## ## t ???????? | | ?? %% ## ## @ t ???????? | | ?????????# ## d ###########?????????? | | ?????????# ### # #???????????????????? | | ?????????# #?####### #???????????????????? | | ?????????# # #???????? #???????????????????? | | ?????????# ## ###????????? ???????????????????? | | ?????###### ### #???????????# ??????????????????? | | ????## ######?# #???????????? #?????????????????? | | ??### ###???# #?????????????#?????????????????? | | ?## ##### #???????????????????????????????? | | ?# #???????????????????????????????? | | ?## ######???????????????????????????????? | | ??##### ##????????????????????????????????????? | | ??????## ##?????????????????????????????????????? | | ???????####??????????????????????????????????????? | | ?????????????????????????????????????????????????? | | ?????????????????????????????????????????????????? | | | | | | | | | | | | | | | | | +----------------------------------------------------+ Best States ------------- Heat Dissipation 50 Energy Generation 12 Energy Capacity 265 Matter Stores 300 Matter Capacity 300 Sight Range 16 Terrain Scan Density 10 Armor Coverage 150 Evasion (%) 44 Recoil Reduction 2 Item Schematics ----------------- None Robot Schematics ------------------ M-13 Machinist | -9/Materials | Hacked Fabricated ------------ Nothing Alien Tech Used ----------------- None Achievements -------------- None Challenges ------------ None Game ------ Seed ScatterSubatomicStorm Manual? 0 Play Time 00:15:40 Cumulative 360.4 hours Start 2023.09.24 @ 15:00:25 End 2023.09.24 @ 15:14:24 Sessions 1 Manual Loads 0 Difficulty Rogue Special Mode None Game No. 231 Rogue 228 Adventurer 3 Explorer 0 Win Type - Total 7 Types 6/0/1/0/0/0/0/0/0 Lore% 69 Gallery% 75 Achievement% 66 Wizard Run 0 Options --------- ASCII 0 Keyboard 0 Movement Numpad Keybinds 0 Fullscreen 1 Font 18/SmallcapsGlow Map View 76x50 Tactical HUD 1 Map Filters NONE Filters NONE Steam 1 RUN: 37b6001d-710a-4bdc-b9a3-f021154aa37e